bitfinex/quotes_BTCUSD_20240701
["timestamp","ask_amount","ask_price","bid_price","bid_amount"]
[1719801245698,1.82288048,63586.0,63585.0,0.004924]
[1719801245905,1.82290152,63586.0,63585.0,0.004924]
[1719801246110,1.82290152,63586.0,63585.0,0.000924]
[1719801246517,1.83690152,63586.0,63585.0,0.000924]
[1719801248317,1.82790206,63586.0,63585.0,0.000924]
[1719801248545,1.76379751,63586.0,63585.0,0.000924]
[1719801248721,2.08009751,63586.0,63585.0,0.000924]
[1719801249145,2.37466751,63586.0,63585.0,0.000924]
[1719801249543,2.17466751,63586.0,63585.0,0.000924]
[1719801249753,2.88920151,63586.0,63585.0,0.000924]
[1719801249989,2.88920151,63586.0,63580.0,0.009251]
[1719801249990,1.205526,63581.0,63580.0,0.009251]
[1719801250210,1.60685451,63581.0,63580.0,0.009251]
[1719801251278,1.62085451,63581.0,63580.0,0.009251]
[1719801251477,2.16095781,63581.0,63580.0,0.009251]
[1719801251696,2.08785781,63581.0,63580.0,0.009251]
[1719801251904,2.16095781,63581.0,63580.0,0.009251]
[1719801253455,1.205596,63577.0,63576.0,0.009251]
[1719801253661,1.205596,63577.0,63571.0,0.002]
[1719801253662,0.167301,63572.0,63571.0,0.002]
[1719801253988,2.05259595,63572.0,63571.0,0.002]
[1719801254192,2.05259595,63572.0,63551.0,0.002]
[1719801254193,0.776527,63565.0,63551.0,0.002]
[1719801254467,0.482053,63552.0,63551.0,0.002]
[1719801254682,0.982855,63552.0,63551.0,0.002]
[1719801254885,0.668153,63552.0,63551.0,0.002]
[1719801255391,1.30365896,63552.0,63551.0,0.002]
[1719801256299,1.61836096,63552.0,63551.0,0.002]
[1719801256637,1.54526096,63552.0,63551.0,0.002]
[1719801256851,1.61836096,63552.0,63551.0,0.002]
[1719801257052,0.81128696,63552.0,63551.0,0.002]
[1719801257277,0.82328696,63552.0,63551.0,0.002]
[1719801257483,0.91038696,63552.0,63551.0,0.002]
[1719801257658,0.85649198,63552.0,63551.0,0.002]
[1719801257866,0.76939198,63552.0,63551.0,0.002]
[1719801258064,0.78339198,63552.0,63551.0,0.002]
[1719801258270,0.79739198,63552.0,63551.0,0.002]
[1719801259268,0.77139198,63552.0,63551.0,0.002]
[1719801259680,1.07209398,63552.0,63551.0,0.002]
[1719801259876,1.08609398,63552.0,63551.0,0.002]
[1719801260220,1.09609398,63552.0,63551.0,0.002]
[1719801260443,1.17666398,63552.0,63551.0,0.002]
[1719801260940,1.24330888,63552.0,63551.0,0.002]
[1719801261142,2.12691088,63552.0,63551.0,0.002]
[1719801261348,2.09991088,63552.0,63551.0,0.002]
[1719801261496,2.11391088,63552.0,63551.0,0.002]
[1719801261685,2.31391088,63552.0,63551.0,0.002]
[1719801261885,2.31391088,63552.0,63539.0,0.009262]
[1719801261886,0.675681,63540.0,63539.0,0.009262]
[1719801262143,1.79875888,63540.0,63539.0,0.009262]
[1719801262310,2.78077582,63540.0,63539.0,0.009262]
[1719801262510,1.291512,63537.0,63536.0,1e-08]
[1719801262712,0.734212,63528.0,63527.0,0.009262]
[1719801262914,0.734212,63528.0,63518.0,0.48811044]
[1719801262915,0.787165,63519.0,63518.0,0.48811044]
[1719801263143,0.472314,63517.0,63516.0,0.009262]
[1719801263345,0.75765298,63517.0,63516.0,0.009262]
[1719801263577,0.123,63517.0,63516.0,0.01171911]
[1719801263765,0.1,63517.0,63516.0,0.01171911]
[1719801263917,0.1,63517.0,63516.0,0.009262]
[1719801264117,0.123,63517.0,63516.0,0.009262]
[1719801264320,0.45677698,63517.0,63516.0,0.009262]
[1719801264530,0.47077698,63517.0,63516.0,0.009262]
[1719801264779,0.45677698,63517.0,63516.0,0.009262]
[1719801264957,0.46777698,63517.0,63516.0,0.009262]
[1719801265162,0.125,63517.0,63516.0,0.009262]
[1719801265371,0.014,63517.0,63516.0,0.01171911]
[1719801265564,0.128,63517.0,63516.0,0.01171911]
[1719801265764,0.114,63517.0,63516.0,0.01171911]
[1719801266332,0.114,63517.0,63516.0,0.009262]
[1719801266532,0.114,63517.0,63516.0,0.01171911]
[1719801266733,0.114,63517.0,63516.0,0.009262]
[1719801266936,0.123,63517.0,63516.0,0.009262]
[1719801267345,0.151,63517.0,63516.0,0.009262]
[1719801267743,0.123,63517.0,63516.0,0.009262]
[1719801267946,0.129,63517.0,63516.0,0.009262]
[1719801268145,0.043,63517.0,63516.0,0.009262]
[1719801268379,0.037,63517.0,63516.0,0.009262]
[1719801268575,0.023,63517.0,63516.0,0.009262]
[1719801268773,0.17633898,63517.0,63516.0,0.009262]
[1719801268975,0.88091095,63517.0,63516.0,0.009262]
[1719801269313,1.82757123,63517.0,63516.0,0.009262]
[1719801269537,1.78823295,63517.0,63516.0,0.009262]
[1719801269746,1.60523295,63517.0,63516.0,0.009262]
[1719801269944,1.78823295,63517.0,63516.0,0.009262]
[1719801270145,1.98990494,63517.0,63516.0,0.009262]
[1719801270549,2.00390494,63517.0,63516.0,0.009262]
[1719801270728,1.98990494,63517.0,63516.0,0.009262]
[1719801270932,1.97590494,63517.0,63516.0,0.009262]
[1719801271133,1.98990494,63517.0,63516.0,0.009262]
[1719801271506,0.86203,63508.0,63507.0,0.00034895]
[1719801271684,1.70601122,63508.0,63507.0,0.00034895]
[1719801271826,2.9572702,63508.0,63507.0,0.00034895]
[1719801272027,3.2802702,63508.0,63507.0,0.00034895]
[1719801272267,3.92332391,63508.0,63507.0,0.00034895]
[1719801272443,3.92332391,63508.0,63495.0,0.4675]
[1719801272444,0.89202,63496.0,63495.0,0.4675]
[1719801272656,0.1675,63492.0,63491.0,0.002]
[1719801272871,0.76783898,63492.0,63491.0,0.002]
[1719801273073,1.08283898,63492.0,63491.0,0.002]
[1719801273255,1.16740898,63492.0,63491.0,0.002]
[1719801273676,1.17740898,63492.0,63491.0,0.002]
[1719801274444,0.53740898,63492.0,63491.0,0.002]
[1719801274649,0.87240898,63492.0,63491.0,0.002]
[1719801275090,0.85840898,63492.0,63491.0,0.002]
[1719801275310,0.86640898,63492.0,63491.0,0.002]
[1719801275508,0.88040898,63492.0,63491.0,0.002]
[1719801275866,1.19540898,63492.0,63491.0,0.002]
[1719801276191,1.20540898,63492.0,63491.0,0.002]
[1719801276561,1.19540898,63492.0,63491.0,0.002]
[1719801276968,0.88040898,63492.0,63491.0,0.002]
[1719801277169,0.39390898,63492.0,63491.0,0.002]
[1719801277373,0.39390898,63492.0,63491.0,0.00445711]
[1719801277374,0.114,63492.0,63491.0,0.00445711]
[1719801277860,0.014,63492.0,63491.0,0.00445711]
[1719801278113,0.128,63492.0,63491.0,0.25278111]
[1719801278356,0.128,63492.0,63491.0,0.002924]
[1719801278479,0.69740898,63492.0,63491.0,0.002924]
[1719801278680,1.33740898,63492.0,63491.0,0.002924]
[1719801278888,1.38840898,63492.0,63491.0,0.002924]
[1719801279095,1.36440898,63492.0,63491.0,0.002924]
[1719801279261,0.29933898,63492.0,63491.0,0.002924]
[1719801279443,0.28533898,63492.0,63491.0,0.002924]
[1719801280717,0.29933898,63492.0,63491.0,0.002924]
[1719801280909,0.29933898,63492.0,63491.0,0.00538111]
[1719801281128,0.28533898,63492.0,63491.0,0.00538111]
[1719801281493,0.29933898,63492.0,63491.0,0.002924]
[1719801281909,0.31333898,63492.0,63491.0,0.002924]
[1719801282125,0.29933898,63492.0,63491.0,0.002924]
[1719801282340,0.31333898,63492.0,63491.0,0.00538111]
[1719801282562,0.31333898,63492.0,63491.0,0.002924]
[1719801283768,0.78583898,63492.0,63491.0,0.002924]
[1719801283969,0.88040898,63492.0,63491.0,0.002924]
[1719801285933,0.56540898,63492.0,63491.0,0.002924]
[1719801288191,0.88040898,63492.0,63491.0,0.002924]
[1719801289166,0.89040898,63492.0,63491.0,0.002924]
[1719801289565,0.88040898,63492.0,63491.0,0.002924]
[1719801290323,0.89040898,63492.0,63491.0,0.002924]
[1719801290725,0.88040898,63492.0,63491.0,0.002924]
[1719801290929,0.56540898,63492.0,63491.0,0.002924]
[1719801291151,0.56540898,63492.0,63491.0,0.13383923]
[1719801291560,1.19540898,63492.0,63491.0,0.002924]
[1719801291775,0.88040898,63492.0,63491.0,0.002924]
[1719801292204,0.56540898,63492.0,63491.0,0.13384533]
[1719801292421,0.31333898,63492.0,63491.0,0.13630244]
[1719801293275,0.31333898,63492.0,63491.0,0.13384533]
[1719801293643,0.47083898,63492.0,63491.0,0.13384533]
[1719801293994,0.47083898,63492.0,63491.0,0.002924]
[1719801294193,0.47083898,63492.0,63491.0,0.13383962]
[1719801294394,0.31333898,63492.0,63491.0,0.13383962]
[1719801295328,0.47083898,63492.0,63491.0,0.13383962]
[1719801295551,0.31333898,63492.0,63491.0,0.13383962]
[1719801295952,0.47083898,63492.0,63491.0,0.13383962]
[1719801296639,0.47083898,63492.0,63491.0,0.68149673]
[1719801296640,0.128,63492.0,63491.0,0.68149673]
[1719801297077,0.028,63492.0,63491.0,0.68149673]
[1719801297283,0.028,63492.0,63491.0,0.88781251]
[1719801297530,0.028,63492.0,63491.0,0.87781251]
[1719801297701,0.014,63492.0,63491.0,0.87781251]
[1719801297957,0.472392,63507.0,63500.0,0.00245711]
[1719801298158,0.073079,63514.0,63502.0,0.52125711]
[1719801298366,0.073079,63514.0,63506.0,0.00245711]
[1719801298367,0.16233898,63513.0,63506.0,0.00245711]
[1719801298539,0.157451,63512.0,63507.0,0.13089256]
[1719801298714,0.16233898,63511.0,63508.0,0.13089256]
[1719801299035,0.16233898,63511.0,63510.0,0.00245711]
[1719801299363,0.16233898,63511.0,63510.0,0.13334967]
[1719801299496,0.01578253,63514.0,63510.0,0.13089256]
[1719801299695,0.01578253,63514.0,63511.0,0.13089256]
[1719801299696,0.16233898,63513.0,63511.0,0.13089256]
[1719801299895,0.16233898,63513.0,63512.0,0.12817854]
[1719801300118,0.17233898,63513.0,63512.0,0.12817854]
[1719801300679,0.74468298,63513.0,63512.0,0.12817854]
[1719801300829,1.31577898,63513.0,63512.0,0.12817854]
[1719801301032,2.23844498,63513.0,63512.0,0.12817854]
[1719801301237,2.06644498,63513.0,63512.0,0.12817854]
[1719801301433,2.25244498,63513.0,63512.0,0.12817854]
[1719801301657,2.286374,63513.0,63512.0,0.12817854]
[1719801301868,2.388974,63513.0,63512.0,0.12817854]
[1719801302063,2.402974,63513.0,63512.0,0.12817854]
[1719801302267,0.01,63500.0,63497.0,0.2951]
[1719801302434,0.1,63500.0,63497.0,0.2951]
[1719801303691,0.157482,63499.0,63497.0,0.2951]
[1719801303869,0.157485,63498.0,63497.0,0.2951]
[1719801304071,0.472462,63497.0,63496.0,0.2367]
[1719801304332,0.572462,63497.0,63496.0,0.2367]
[1719801304684,0.157491,63496.0,63492.0,0.2995]
[1719801304891,0.1,63495.0,63492.0,0.5323]
[1719801305668,0.257492,63495.0,63492.0,0.5323]
[1719801305872,0.4725,63492.0,63491.0,0.002924]
[1719801306056,0.65783898,63492.0,63491.0,0.002924]
[1719801306254,0.75783898,63492.0,63491.0,0.002924]
[1719801307399,1.07283898,63492.0,63491.0,0.002924]
[1719801307803,1.07983898,63492.0,63491.0,0.002924]
[1719801308026,1.08283898,63492.0,63491.0,0.002924]
[1719801308635,1.08983898,63492.0,63491.0,0.002924]
[1719801309344,1.39783898,63492.0,63491.0,0.010784]
[1719801309830,1.38783898,63492.0,63491.0,0.010784]
[1719801309967,1.41183898,63492.0,63491.0,0.010784]
[1719801310363,1.42583898,63492.0,63491.0,0.010784]
[1719801311450,1.54038651,63492.0,63491.0,0.010784]
[1719801311652,1.55438651,63492.0,63491.0,0.010784]
[1719801313904,1.5704814,63492.0,63491.0,0.010784]
[1719801314052,1.5604814,63492.0,63491.0,0.010784]
[1719801314461,1.2454814,63492.0,63491.0,0.010784]
[1719801315665,0.5209114,63492.0,63491.0,0.010784]
[1719801315889,0.5209114,63492.0,63491.0,0.260884]
[1719801316450,0.5209114,63492.0,63491.0,0.573984]
[1719801316897,0.3404114,63492.0,63491.0,0.573984]
[1719801317070,0.128,63492.0,63491.0,0.57644111]
[1719801317944,0.128,63492.0,63491.0,0.573984]
[1719801317945,0.028,63492.0,63491.0,0.573984]
[1719801318095,0.028,63492.0,63491.0,0.58644111]
[1719801318296,0.028,63492.0,63491.0,0.57644111]
[1719801318737,0.00084,63507.0,63502.0,0.00245711]
[1719801318940,0.16233898,63506.0,63502.0,0.00245711]
[1719801319136,0.16233898,63506.0,63493.0,0.2501]
[1719801319137,0.16233898,63506.0,63503.0,0.00245711]
[1719801319341,0.01647905,63507.0,63504.0,0.5632]
[1719801319538,0.00084,63507.0,63505.0,0.00245711]
[1719801319918,0.00084,63507.0,63506.0,0.00245711]
[1719801320279,0.00084,63507.0,63504.0,0.5632]
[1719801321064,0.00084,63507.0,63505.0,0.00245711]
[1719801321287,0.00084,63507.0,63504.0,0.5632]
[1719801321288,0.00084,63507.0,63506.0,0.00245711]
[1719801322126,0.01484,63507.0,63506.0,0.54125711]
[1719801322342,0.02884,63507.0,63506.0,0.54125711]
[1719801322529,0.02884,63507.0,63506.0,0.53125711]
[1719801322530,0.01484,63507.0,63506.0,0.53125711]
[1719801322676,0.01484,63507.0,63506.0,0.54125711]
[1719801322879,0.00084,63507.0,63506.0,0.54125711]
[1719801323369,0.00084,63507.0,63506.0,0.53125711]
[1719801323370,0.00984,63507.0,63506.0,0.53125711]
[1719801323772,0.02384,63507.0,63506.0,0.53125711]
[1719801324475,0.03284,63507.0,63506.0,0.53125711]
[1719801326965,0.03284,63507.0,63506.0,0.5288]
[1719801327164,0.03284,63507.0,63506.0,0.2239]
[1719801330627,0.03284,63507.0,63502.0,0.2231]
[1719801330854,0.314939,63505.0,63496.0,0.2231]
[1719801331029,0.157478,63501.0,63496.0,0.5247]
[1719801331225,0.314945,63503.0,63496.0,0.5247]
[1719801331226,0.157474,63503.0,63496.0,0.52715711]
[1719801331426,0.1,63502.0,63496.0,0.52715711]
[1719801331827,0.1,63502.0,63499.0,0.00245711]
[1719801332227,0.1,63502.0,63497.0,0.00245711]
[1719801332457,0.1,63502.0,63501.0,0.00245711]
[1719801332667,0.1,63504.0,63503.0,0.00245711]
[1719801332859,0.00084,63507.0,63505.0,0.303]
[1719801333068,0.00084,63507.0,63506.0,0.00245711]
[1719801333272,0.00084,63507.0,63506.0,0.23285711]
[1719801333983,0.00084,63507.0,63506.0,0.18845237]
[1719801334191,0.00084,63507.0,63506.0,0.14734426]
[1719801334395,0.10084,63507.0,63506.0,0.14734426]
[1719801334602,0.10984,63507.0,63506.0,0.14734426]
[1719801335371,0.12568001,63507.0,63506.0,0.14734426]
[1719801335574,0.13468001,63507.0,63506.0,0.14734426]
[1719801337004,0.11884,63507.0,63506.0,0.14734426]
[1719801337275,0.01884,63507.0,63506.0,0.14734426]
[1719801341954,0.01884,63507.0,63506.0,0.17049342]
[1719801342540,0.01884,63507.0,63506.0,2.0946874]
[1719801342945,0.01884,63507.0,63506.0,2.2956114]
[1719801343357,0.00984,63507.0,63506.0,2.2956114]
[1719801343558,0.00984,63507.0,63506.0,2.29246224]
[1719801343760,0.00984,63507.0,63506.0,2.42329768]
[1719801343761,0.01884,63507.0,63506.0,2.42329768]
[1719801343968,0.00984,63507.0,63506.0,2.42329768]
[1719801344327,0.00984,63507.0,63506.0,2.42629734]
[1719801344534,0.00984,63507.0,63506.0,2.22329734]
[1719801344935,0.00984,63507.0,63506.0,2.42629734]
[1719801344936,0.00184,63507.0,63506.0,2.42629734]
[1719801345140,0.00084,63507.0,63506.0,2.42729734]
[1719801345334,0.00084,63507.0,63506.0,1.21443734]
[1719801345547,0.00084,63507.0,63506.0,1.06360224]
[1719801345776,0.00084,63507.0,63506.0,1.07960224]
[1719801346513,0.00084,63507.0,63506.0,1.38953224]
[1719801346711,0.00184,63507.0,63506.0,1.39653224]
[1719801346911,0.00184,63507.0,63506.0,1.08160224]
[1719801347357,0.00284,63507.0,63506.0,1.08560224]
[1719801347594,0.00284,63507.0,63506.0,1.40053224]
[1719801347799,0.00284,63507.0,63506.0,1.59653224]
[1719801347800,0.00184,63507.0,63506.0,1.59653224]
[1719801347955,0.00184,63507.0,63506.0,1.60053224]
[1719801348156,0.00184,63507.0,63506.0,1.73137126]
[1719801348368,0.00184,63507.0,63506.0,1.53137126]
[1719801348567,0.00184,63507.0,63506.0,1.73137126]
[1719801348772,0.00184,63507.0,63506.0,1.72437126]
[1719801348773,0.00084,63507.0,63506.0,1.72437126]
[1719801349182,0.16495571,63543.0,63519.0,0.2864]
[1719801349367,0.43953926,63540.0,63526.0,0.01]
[1719801349568,0.43953926,63540.0,63528.0,0.5163]
[1719801349569,0.39683898,63540.0,63528.0,0.5163]
[1719801349763,0.16233898,63540.0,63528.0,0.5163]
[1719801350054,0.2345,63544.0,63529.0,0.16055404]
[1719801350226,0.39683898,63544.0,63529.0,0.16055404]
[1719801350609,0.39683898,63544.0,63528.0,0.5163]
[1719801351206,0.57420998,63544.0,63528.0,0.5163]
[1719801351462,0.01,63540.0,63528.0,0.5163]
[1719801351668,0.15739,63537.0,63522.0,0.2197]
[1719801351941,0.28533898,63536.0,63526.0,0.001]
[1719801352411,0.1,63536.0,63526.0,0.001]
[1719801352609,0.1,63536.0,63528.0,0.001]
[1719801352734,0.1,63536.0,63523.0,0.157422]
[1719801352735,0.1,63536.0,63524.0,0.01]
[1719801352939,0.014,63537.0,63524.0,0.16742]
[1719801353160,0.028,63537.0,63524.0,0.01]
[1719801353483,0.014,63537.0,63524.0,0.01]
[1719801353691,0.014,63536.0,63526.0,0.011]
[1719801354278,0.014,63536.0,63527.0,0.02]
[1719801354480,0.014,63536.0,63528.0,0.3049]
[1719801354935,0.028,63536.0,63530.0,0.01]
[1719801355241,0.014,63536.0,63529.0,0.2352]
[1719801355410,0.014,63536.0,63530.0,0.0131478]
[1719801355411,0.028,63536.0,63530.0,0.0131478]
[1719801355617,0.028,63536.0,63532.0,0.01]
[1719801355786,0.014,63537.0,63533.0,0.01]
[1719801356000,0.014,63536.0,63531.0,0.02]
[1719801356205,0.014,63536.0,63535.0,0.01]
[1719801356463,0.014,63536.0,63535.0,0.5266]
[1719801356836,0.014,63536.0,63535.0,1.496567]
[1719801356837,0.012,63536.0,63535.0,1.496567]
[1719801357292,0.012,63536.0,63535.0,1.313567]
[1719801358132,0.01153631,63536.0,63535.0,1.313567]
[1719801358335,0.01252485,63537.0,63536.0,0.492173]
[1719801358719,0.0158879,63553.0,63541.0,0.01]
[1719801358966,0.0158879,63553.0,63542.0,0.01]
[1719801359551,0.0158879,63553.0,63541.0,0.01]
[1719801359951,0.01484,63552.0,63542.0,0.01]
[1719801360753,0.01484,63552.0,63545.0,0.01]
[1719801360754,0.00084,63552.0,63545.0,0.01]
[1719801361565,0.01484,63552.0,63545.0,0.02314715]
[1719801361772,0.01484,63552.0,63545.0,0.01314715]
[1719801361972,0.02884,63552.0,63544.0,0.157368]
[1719801362177,0.04284,63552.0,63545.0,0.001]
[1719801362379,0.2347,63551.0,63545.0,0.001]
[1719801362606,0.1,63550.0,63545.0,0.001]
[1719801362963,0.16233898,63549.0,63545.0,0.002]
[1719801363166,0.472098,63546.0,63545.0,0.002]
[1719801363367,0.472098,63546.0,63545.0,0.001]
[1719801363368,0.67710498,63546.0,63545.0,0.001]
[1719801363580,0.67710498,63546.0,63535.0,0.4675]
[1719801363834,0.280368,63545.0,63535.0,0.4675]
[1719801364392,0.157375,63543.0,63535.0,0.4675]
[1719801364596,0.167376,63542.0,63535.0,0.4675]
[1719801364820,0.157395,63535.0,63526.0,0.4675]
[1719801365145,0.1,63534.0,63523.0,0.2]
[1719801365711,0.1,63534.0,63520.0,0.7835]
[1719801365712,0.314818,63529.0,63520.0,0.7835]
[1719801365915,0.3913,63528.0,63520.0,0.7835]
[1719801366210,0.548711,63528.0,63526.0,0.001]
[1719801366616,0.548711,63528.0,63523.0,0.001]
[1719801366834,0.548711,63528.0,63523.0,0.002]
[1719801367006,0.157414,63527.0,63523.0,0.001]
[1719801367451,0.15742,63524.0,63523.0,0.001]
[1719801367975,0.157419,63525.0,63520.0,0.001]
[1719801368176,0.157422,63524.0,63520.0,0.001]
[1719801368684,0.157422,63524.0,63513.0,0.4675]
[1719801368897,0.166422,63524.0,63510.0,0.229]
[1719801369097,0.314848,63523.0,63510.0,0.229]
[1719801369301,0.31487,63519.0,63510.0,0.229]
[1719801369527,0.31487,63519.0,63507.0,1.451]
[1719801369528,0.157444,63515.0,63507.0,1.451]
[1719801369737,0.157454,63511.0,63507.0,0.2]
[1719801370332,0.472387,63507.0,63506.0,0.000924]
[1719801370538,1.118112,63507.0,63506.0,0.000924]
[1719801370710,0.803187,63507.0,63506.0,0.000924]
[1719801370931,0.511262,63507.0,63506.0,0.000924]
[1719801371182,0.595387,63507.0,63506.0,0.000924]
[1719801371804,2.11967098,63507.0,63506.0,0.000924]
[1719801371977,0.09457,63502.0,63491.0,0.002924]
[1719801372179,0.314977,63497.0,63491.0,0.002924]
[1719801372444,0.1,63496.0,63491.0,0.002924]
[1719801373051,0.157492,63495.0,63491.0,0.002924]
[1719801373428,0.1,63494.0,63491.0,0.002924]
[1719801374109,0.1,63494.0,63487.0,0.009262]
[1719801374110,0.1,63494.0,63487.0,0.007186]
[1719801374446,0.1,63495.0,63487.0,0.007186]
[1719801375440,0.013,63495.0,63487.0,0.007186]
[1719801375638,0.012,63494.0,63487.0,0.007186]
[1719801375995,0.1,63497.0,63487.0,0.007186]
[1719801376137,0.013,63495.0,63487.0,0.007186]
[1719801376334,0.126,63495.0,63487.0,0.007186]
[1719801376749,0.113,63495.0,63487.0,0.007186]
[1719801377542,0.26233898,63494.0,63487.0,0.007186]
[1719801377668,0.15751,63488.0,63487.0,0.007186]
[1719801377870,0.47253,63488.0,63487.0,0.007186]
[1719801378078,0.57253,63488.0,63487.0,0.007186]
[1719801379000,0.25751,63488.0,63487.0,0.007186]
[1719801379364,0.27151,63488.0,63487.0,0.007186]
[1719801379956,0.128,63488.0,63487.0,0.007186]
[1719801380131,0.028,63488.0,63487.0,0.007186]
[1719801381211,0.18551,63488.0,63487.0,0.007186]
[1719801381403,0.28551,63488.0,63487.0,0.007186]
[1719801383464,0.128,63488.0,63487.0,0.007186]
[1719801383667,0.028,63488.0,63487.0,0.007186]
[1719801384909,1.05623968,63488.0,63487.0,0.007186]
[1719801385109,1.31590898,63488.0,63487.0,0.007186]
[1719801385379,1.61890898,63488.0,63487.0,0.007186]
[1719801385689,1.59890898,63488.0,63487.0,0.007186]
[1719801385893,1.59490898,63488.0,63487.0,0.007186]
[1719801386092,1.60490898,63488.0,63487.0,0.007186]
[1719801386313,1.59890898,63488.0,63487.0,0.007186]
[1719801386537,1.61890898,63488.0,63487.0,0.007186]
[1719801387161,1.60490898,63488.0,63487.0,0.007186]
[1719801387655,1.61890898,63488.0,63487.0,0.007186]
[1719801388191,1.71347898,63488.0,63487.0,0.007186]
[1719801388389,2.25572748,63488.0,63487.0,0.007186]
[1719801389189,2.24172748,63488.0,63487.0,0.007186]
[1719801389391,2.25572748,63488.0,63487.0,0.007186]
[1719801389917,2.24172748,63488.0,63487.0,0.007186]
[1719801390076,2.22772748,63488.0,63487.0,0.007186]
[1719801390284,2.05872748,63488.0,63487.0,0.007186]
[1719801390650,2.25572748,63488.0,63487.0,0.007186]
[1719801393294,2.45572748,63488.0,63487.0,0.007186]
[1719801393704,0.157549,63472.0,63471.0,0.002]
[1719801393922,0.472648,63472.0,63471.0,0.002]
[1719801394053,0.572648,63472.0,63471.0,0.002]
[1719801394257,0.257549,63472.0,63471.0,0.002]
[1719801394464,0.572648,63472.0,63471.0,0.002]
[1719801394876,0.595648,63472.0,63471.0,0.002]
[1719801395057,0.600648,63472.0,63471.0,0.002]
[1719801395254,0.76298698,63472.0,63471.0,0.002]
[1719801395968,0.76798698,63472.0,63471.0,0.002]
[1719801396188,1.08308598,63472.0,63471.0,0.002]
[1719801396430,0.76798698,63472.0,63471.0,0.002]
[1719801398057,0.77798698,63472.0,63471.0,0.002]
[1719801398260,1.10308598,63472.0,63471.0,0.002]
[1719801398977,1.09808598,63472.0,63471.0,0.002]
[1719801399209,1.79125498,63472.0,63471.0,0.002]
[1719801399407,2.04305498,63472.0,63471.0,0.002]
[1719801399740,2.03805498,63472.0,63471.0,0.002]
[1719801400143,2.45105498,63472.0,63471.0,0.002]
[1719801400346,2.45105498,63472.0,63459.0,0.009251]
[1719801400347,1.384467,63460.0,63459.0,0.009251]
[1719801400526,1.87539353,63460.0,63459.0,0.009251]
[1719801400872,1.82980598,63460.0,63459.0,0.009251]
[1719801401090,1.85280598,63460.0,63459.0,0.009251]
[1719801401525,0.76607553,63460.0,63459.0,0.009251]
[1719801401755,0.46833898,63460.0,63459.0,0.009251]
[1719801401959,0.28533898,63460.0,63459.0,0.009251]
[1719801402159,0.28533898,63460.0,63459.0,0.294151]
[1719801402160,0.1,63460.0,63459.0,0.294151]
[1719801402368,0.16233898,63460.0,63459.0,0.009251]
[1719801402566,0.18533898,63460.0,63459.0,0.009251]
[1719801402707,0.28533898,63460.0,63459.0,0.009251]
[1719801403528,0.31333898,63460.0,63459.0,0.009251]
[1719801403743,0.29933898,63460.0,63459.0,0.009251]
[1719801403942,0.27633898,63460.0,63459.0,0.009251]
[1719801404144,0.29033898,63460.0,63459.0,0.009251]
[1719801404548,0.29033898,63460.0,63459.0,0.14022429]
[1719801404549,0.128,63460.0,63459.0,0.14022429]
[1719801405491,0.128,63460.0,63459.0,0.009251]
[1719801405492,0.27633898,63460.0,63459.0,0.009251]
[1719801405703,0.29033898,63460.0,63459.0,0.009251]
[1719801405879,0.27633898,63460.0,63459.0,0.009251]
[1719801406281,0.114,63460.0,63459.0,0.009251]
[1719801406631,0.128,63460.0,63459.0,0.14022842]
[1719801406844,0.128,63460.0,63459.0,0.009251]
[1719801406973,0.128,63460.0,63459.0,0.14021853]
[1719801407780,0.128,63460.0,63459.0,0.65971853]
[1719801407781,0.028,63460.0,63459.0,0.65971853]
[1719801408056,0.128,63460.0,63459.0,0.67971853]
[1719801409067,0.014,63460.0,63459.0,0.91860399]
[1719801409302,0.014,63460.0,63459.0,1.23376799]
[1719801409528,0.014,63460.0,63459.0,1.54893199]
[1719801409529,0.022,63460.0,63459.0,1.54893199]
[1719801409734,0.008,63460.0,63459.0,1.54893199]
[1719801410148,0.016,63460.0,63459.0,1.54893199]
[1719801410554,0.016,63460.0,63459.0,1.74536222]
[1719801410725,0.008,63460.0,63459.0,1.74536222]
[1719801411700,0.008,63460.0,63459.0,1.79211392]
[1719801412102,0.11627889,63480.0,63466.0,0.01]
[1719801412306,0.18533898,63479.0,63467.0,0.67836753]
[1719801412513,0.1,63478.0,63468.0,0.14411837]
[1719801412707,0.1,63483.0,63469.0,0.28852453]
[1719801412930,0.18533898,63482.0,63470.0,0.13096753]
[1719801413120,0.1,63481.0,63468.0,0.01315084]
[1719801413323,0.014,63480.0,63469.0,0.13094314]
[1719801413551,0.014,63480.0,63470.0,0.13094305]
[1719801413757,0.014,63478.0,63472.0,0.5474]
[1719801413953,0.014,63480.0,63475.0,0.01]
[1719801414210,0.014,63480.0,63479.0,0.3055]
[1719801414419,0.014,63480.0,63479.0,0.92218921]
[1719801414805,0.014,63481.0,63480.0,0.482588]
[1719801415016,0.014,63481.0,63480.0,1.18049005]
[1719801415581,0.5082,63500.0,63480.0,1.18049005]
[1719801415582,0.5082,63500.0,63486.0,0.157515]
[1719801415786,0.5082,63505.0,63486.0,0.84900799]
[1719801415989,0.5082,63505.0,63486.0,0.84897283]
[1719801415990,0.01611715,63498.0,63486.0,0.84897283]
[1719801416192,0.01611715,63498.0,63486.0,1.16400283]
[1719801417143,0.00484,63487.0,63486.0,0.66830789]
[1719801417747,0.00484,63487.0,63486.0,0.84582289]
[1719801417979,0.00484,63487.0,63486.0,0.83582289]
[1719801418209,0.00484,63487.0,63486.0,0.82582289]
[1719801418409,0.00484,63487.0,63486.0,0.84582289]
[1719801418583,0.00484,63487.0,63486.0,0.83582289]
[1719801419026,0.00484,63487.0,63486.0,0.67830789]
[1719801419027,0.00884,63487.0,63486.0,0.67830789]
[1719801419212,0.00884,63487.0,63486.0,0.13090789]
[1719801419615,0.00884,63487.0,63482.0,0.2374]